fUST/lending_fUST_20251228
["ID","MTS","AMOUNT","RATE_DAILY","PERIOD"]
[399908387,1766853033380,-191.908178,0.00019178,2]
[399908388,1766853033391,-191.908178,0.00019178,2]
[399908389,1766853033401,-191.908178,0.00019178,2]
[399908390,1766853033411,-191.908178,0.00019178,2]
[399908391,1766853033421,-191.908178,0.00019178,2]
[399908392,1766853033432,-191.908178,0.00019178,2]
[399908393,1766853033441,-191.908178,0.00019178,2]
[399908394,1766853033451,-151.0,0.00019178,2]
[399908395,1766853033461,-280.248876,0.00019178,2]
[399908396,1766853033470,-151.0,0.00019178,2]
[399908397,1766853033480,-151.0,0.00019178,2]
[399908398,1766853033490,-151.0,0.00019178,2]
[399908399,1766853033500,-151.0,0.00019178,2]
[399908400,1766853033511,-151.0,0.00019178,2]
[399908401,1766853033522,-151.0,0.00019178,2]
[399908402,1766853033532,-151.0,0.00019178,2]
[399908403,1766853033541,-260.900658,0.00019178,2]
[399908404,1766853033551,-205.947099,0.00019178,2]
[399908405,1766853033560,-173.481568,0.00019178,2]
[399908406,1766853033570,-1450.48,0.000192,2]
[399908407,1766853033579,-4642.37446525,0.000192,2]
[399908442,1766853037944,-500.0,0.00016505,2]
[399908444,1766853037954,-244.06741253,0.00016505,2]
[399908446,1766853037964,-360.13350063,0.00016505,2]
[399908448,1766853037974,-500.0,0.00016505,2]
[399908450,1766853037983,-173.481568,0.00019178,2]
[399908452,1766853037993,-173.481568,0.00019178,2]
[399908453,1766853038003,-173.481568,0.00019178,2]
[399908454,1766853038013,-151.0,0.00019178,2]
[399908455,1766853038023,-11445.73553475,0.000192,2]
[399908456,1766853038033,-151.0,0.000192,2]
[399908457,1766853038042,-179.131226,0.000192,2]
[399908458,1766853038052,-151.0,0.000192,2]
[399908459,1766853038062,-151.0,0.000192,2]
[399908460,1766853038072,-151.0,0.000192,2]
[399908461,1766853038086,-151.0,0.000192,2]
[399908462,1766853038096,-151.0,0.000192,2]
[399908463,1766853038105,-151.0,0.000192,2]
[399908464,1766853038115,-151.0,0.000192,2]
[399908465,1766853038126,-151.0,0.000192,2]
[399908466,1766853038136,-151.0,0.000192,2]
[399908467,1766853038146,-151.0,0.000192,2]
[399908468,1766853038158,-230.227136,0.000192,2]
[399908469,1766853038169,-230.227136,0.000192,2]
[399908470,1766853038179,-230.227136,0.000192,2]
[399908471,1766853038189,-230.227136,0.000192,2]
[399908472,1766853038199,-151.0,0.000192,2]
[399908473,1766853038209,-151.0,0.000192,2]
[399908474,1766853038219,-151.0,0.000192,2]
[399908475,1766853038230,-235.175917,0.000192,2]
[399908476,1766853038240,-151.0,0.000192,2]
[399908477,1766853038250,-191.908178,0.000192,2]
[399908478,1766853038260,-191.908178,0.000192,2]
[399908479,1766853038270,-191.908178,0.000192,2]
[399908480,1766853038281,-191.908178,0.000192,2]
[399908481,1766853038291,-151.0,0.000192,2]
[399908482,1766853038307,-151.0,0.000192,2]
[399908483,1766853038328,-173.481568,0.000192,2]
[399908484,1766853038349,-173.481568,0.000192,2]
[399908485,1766853038370,-173.481568,0.000192,2]
[399908486,1766853038382,-173.481568,0.000192,2]
[399908487,1766853038393,-160.0,0.00019217,2]
[399908488,1766853038403,-262.01168581,0.00019263,7]
[399908490,1766853038416,-1200.0,0.00019356,7]
[399908492,1766853038427,-214.6021453,0.00019549,2]
[399908493,1766853038437,-159.9451799,0.00019703,2]
[399908495,1766853038448,-260.0,0.00019765,2]
[399908496,1766853038457,-400.0,0.0002,2]
[399908497,1766853038467,-390.60275,0.00020187,2]
[399908498,1766853038478,-731.7042073,0.00020224,7]
[399908499,1766853038488,-1041.66666667,0.00020402,2]
[399908500,1766853038497,-1000.0,0.0002044,2]
[399908501,1766853038507,-1200.0,0.00020452,7]
[399908502,1766853038517,-521.76340615,0.000205,2]
[399908503,1766853038530,-6104.62934326,0.000205,2]
[399908515,1766853040069,-151.0,0.00019178,2]
[399908516,1766853040082,-151.0,0.00019178,2]
[399908517,1766853040092,-151.0,0.000192,2]
[399908518,1766853040103,-151.0,0.000192,2]
[399908519,1766853040113,-151.0,0.000192,2]
[399908520,1766853040123,-160.56306572,0.000205,2]
[399908521,1766853040190,-5375.12288641,0.000205,2]
[399908570,1766853046080,-880.9594804,0.00014641,2]
[399908573,1766853046092,-880.9594804,0.000166,2]
[399908576,1766853046102,-880.9594804,0.00018559,2]
[399908579,1766853046112,-151.0,0.00019178,2]
[399908581,1766853046123,-151.0,0.00019178,2]
[399908583,1766853046133,-277.262027,0.00019178,2]
[399908585,1766853046143,-151.0,0.000192,2]
[399908587,1766853046154,-220.20195167,0.000192,2]
[399908589,1766853046163,-3926.03129846,0.000205,2]
[399908590,1766853046174,-173.481568,0.000205,2]
[399908592,1766853046183,-173.481568,0.000205,2]
[399908595,1766853046194,-173.481568,0.000205,2]
[399908597,1766853046204,-173.481568,0.000205,2]
[399908598,1766853046214,-151.0,0.000205,2]
[399908601,1766853046223,-151.0,0.000205,2]
[399908603,1766853046233,-151.0,0.000205,2]
[399908604,1766853046243,-151.0,0.000205,2]
[399908606,1766853046253,-880.9594804,0.00020518,2]
[399908609,1766853046263,-157.91231204,0.00020521,30]
[399908610,1766853046272,-157.91231204,0.00020658,30]
[399908612,1766853046282,-150.0,0.000207,5]
[399908615,1766853046292,-290.86316454,0.00020793,2]
[399908617,1766853046302,-157.91231204,0.00020795,30]
[399908618,1766853046312,-157.91231204,0.00020932,30]
[399908620,1766853046322,-12232.28124267,0.00021,7]
[399908622,1766853046334,-1117.9922763,0.00021,7]
[399908623,1766853046428,-256.2,0.00021,7]
[399908624,1766853046440,-12513.3278408,0.00021,7]
[399908625,1766853046451,-5224.42897585,0.00021,7]
[399908626,1766853046463,-672.80841133,0.00021,7]
[399908627,1766853047543,-151.0,0.00019178,2]
[399908630,1766853047554,-151.0,0.000192,2]
[399908632,1766853047565,-6806.86087756,0.00021,7]
[399908633,1766853047577,-5598.97004401,0.00021,7]
[399908634,1766853107684,150.0,7.731e-05,2]
[399908635,1766853108073,150.0,8.099e-05,2]
[399908636,1766853108708,150.0,8.467e-05,2]
[399908637,1766853109009,150.0,8.835e-05,2]
[399908638,1766853109464,150.0,9.203e-05,2]
[399908639,1766853109871,150.0,9.571e-05,2]
[399908640,1766853110297,167.72,9.94e-05,2]
[399908641,1766853110706,191.68,0.00010308,2]
[399908642,1766853111146,215.64,0.00010676,2]
[399908643,1766853111600,239.6,0.00011044,2]
[399908644,1766853176583,150.0,8.233e-05,2]
[399908645,1766853190468,500.0,0.00013273,2]
[399908646,1766853191609,500.0,0.00013699,2]
[399908647,1766853194583,500.0,0.00013699,2]
[399908648,1766853195043,500.0,0.00013699,2]
[399908649,1766853197006,500.0,0.00013699,2]
[399908650,1766853200009,182.86718246,0.00013673,2]
[399908651,1766853200138,500.0,0.00013273,2]
[399908652,1766853200612,500.0,0.00013273,2]
[399908653,1766853256334,417.94885603,0.00013273,2]
[399908654,1766853303159,2926.8329482,0.00014,2]
[399908656,1766853427161,500.0,0.00013273,2]
[399908660,1766853709047,1855.81035215,0.0001439,2]
[399908662,1766853784059,500.0,0.00013699,2]
[399908663,1766853814477,3135.060643,0.00014051,2]
[399908664,1766854029136,-500.0,0.00014639,2]
[399908665,1766854029158,-204.1486818,0.00014639,2]
[399908666,1766854040137,-334.27940964,0.00014639,2]
[399908667,1766854047079,-657.06400184,0.00014639,2]
[399908668,1766854047100,-189.89296906,0.00014716,2]
[399908669,1766854047119,-200.0,0.00014922,2]
[399908670,1766854047140,-300.0,0.00015048,2]
[399908671,1766854047161,-500.0,0.00015049,2]
[399908672,1766854047184,-39.74146164,0.00015049,2]
[399908673,1766854125047,426.542475,0.00013699,2]
[399908675,1766854150084,-2064.97225224,0.00014949,2]
[399908685,1766854231710,-300.0,0.00015047,2]
[399908686,1766854231720,-206.0,0.00015047,2]
[399908687,1766854231730,-6.35140376,0.00015048,2]
[399908761,1766854237766,-500.0,0.00015047,2]
[399908763,1766854237777,-500.0,0.00015047,2]
[399908765,1766854237786,-500.0,0.00015047,2]
[399908767,1766854237796,-176.82193641,0.00015047,2]
[399908769,1766854237806,-500.0,0.00015047,2]
[399908771,1766854237815,-422.76119589,0.00015047,2]
[399908808,1766854238721,-77.23880411,0.00015047,2]
[399908809,1766854238731,-132.39435506,0.00015047,2]
[399908810,1766854238743,-367.60564494,0.00015047,2]
[399908811,1766854238753,-500.0,0.00015047,2]
[399908812,1766854238763,-500.0,0.00015047,2]
[399908813,1766854238773,-456.10504682,0.00015047,2]
[399908983,1766854245982,-43.89495318,0.00015047,2]
[399908986,1766854245994,-500.0,0.00015047,2]
[399908987,1766854246004,-500.0,0.00015047,2]
[399908990,1766854246014,-500.0,0.00015047,2]
[399908992,1766854246025,-500.0,0.00015047,2]
[399908994,1766854246035,-452.99051709,0.00015047,2]
[399909007,1766854246159,-47.00948291,0.00015047,2]
[399909009,1766854246169,-51.12402851,0.00015047,2]
[399909127,1766854280350,300.0,0.00013673,2]
[399909128,1766854282268,457.63175774,0.00013273,2]
[399909129,1766854282291,42.36824226,0.00013273,2]
[399909130,1766854282803,500.0,0.00013273,2]
[399909131,1766854324865,258.23753703,0.00013699,2]
[399909132,1766854331997,150.0,9.136e-05,2]
[399909133,1766854335338,500.0,0.00013273,2]
[399909134,1766854388016,500.0,0.00013273,2]
[399909135,1766854396071,150.0,0.00010158,2]
[399909136,1766854396355,500.0,0.00013699,2]
[399909137,1766854396484,150.0,0.00010642,2]
[399909138,1766854398480,500.0,0.00013699,2]
[399909139,1766854399287,500.0,0.00013699,2]
[399909140,1766854401824,500.0,0.00013699,2]
[399909141,1766854402668,300.0,0.00013673,2]
[399909142,1766854403142,500.0,0.00013699,2]
[399909143,1766854404347,500.0,0.00013273,2]
[399909144,1766854446933,-174.0,0.00015045,2]
[399909145,1766854446957,-500.0,0.00015046,2]
[399909146,1766854446980,-326.0,0.00015046,2]
[399909147,1766854449253,-174.0,0.00015046,2]
[399909148,1766854449277,-500.0,0.00015046,2]
[399909149,1766854449301,-326.0,0.00015046,2]
[399909150,1766854459987,-174.0,0.00015046,2]
[399909151,1766854460018,-500.0,0.00015046,2]
[399909152,1766854460046,-326.0,0.00015046,2]
[399909153,1766854465656,-174.0,0.00015046,2]
[399909154,1766854465685,-500.0,0.00015046,2]
[399909155,1766854465708,-326.0,0.00015046,2]
[399909156,1766854471712,-174.0,0.00015046,2]
[399909157,1766854471734,-500.0,0.00015046,2]
[399909158,1766854471755,-326.0,0.00015046,2]
[399909159,1766854482076,-174.0,0.00015046,2]
[399909160,1766854482098,-500.0,0.00015046,2]
[399909161,1766854482120,-326.0,0.00015046,2]
[399909162,1766854483926,-174.0,0.00015046,2]
[399909163,1766854483950,-500.0,0.00015046,2]
[399909164,1766854483973,-326.0,0.00015046,2]
[399909165,1766854485139,-174.0,0.00015046,2]
[399909166,1766854485162,-500.0,0.00015046,2]
[399909167,1766854485184,-326.0,0.00015046,2]
[399909168,1766854485919,1291.0,0.0001439,2]
[399909169,1766854486286,-500.0,0.00015045,2]
[399909170,1766854486307,-215.62053485,0.00015045,2]
[399909171,1766854486329,-284.37946515,0.00015045,2]
[399909172,1766854488824,-215.62053485,0.00015045,2]
[399909173,1766854488846,-500.0,0.00015045,2]
[399909174,1766854488870,-284.37946515,0.00015045,2]
[399909175,1766854490582,-215.62053485,0.00015045,2]
[399909176,1766854490605,-500.0,0.00015045,2]
[399909177,1766854490628,-284.37946515,0.00015045,2]
[399909178,1766854492184,-215.62053485,0.00015045,2]
[399909179,1766854492207,-500.0,0.00015045,2]
[399909180,1766854492230,-284.37946515,0.00015045,2]
[399909181,1766854493433,-215.62053485,0.00015045,2]
[399909182,1766854493457,-500.0,0.00015045,2]
[399909183,1766854493479,-284.37946515,0.00015045,2]
[399909184,1766854495000,-215.62053485,0.00015045,2]
[399909185,1766854495023,-442.87849738,0.00015045,2]
[399909186,1766854495046,-341.50096777,0.00015045,2]
[399909187,1766854496424,-158.49903223,0.00015045,2]
[399909188,1766854496447,-500.0,0.00015045,2]
[399909189,1766854496469,-174.0,0.00015046,2]
[399909190,1766854496491,-167.50096777,0.00015046,2]
[399909191,1766854510878,203.42220898,0.0002632,120]
[399909194,1766854564823,500.0,0.00013273,2]
[399909195,1766854590619,150.0,0.00010107,2]
[399909196,1766854627421,500.0,0.00013273,2]
[399909198,1766854668170,-300.0,0.00015044,2]
[399909199,1766854668195,-500.0,0.00015045,2]
[399909200,1766854668217,-200.0,0.00015045,2]
[399909201,1766854670806,-208.67360383,0.00015045,2]
[399909202,1766854670830,-500.0,0.00015045,2]
[399909203,1766854670854,-291.32639617,0.00015045,2]
[399909204,1766854672595,-208.67360383,0.00015045,2]
[399909205,1766854672619,-500.0,0.00015045,2]
[399909206,1766854672642,-291.32639617,0.00015045,2]
[399909207,1766854674051,-208.67360383,0.00015045,2]
[399909208,1766854674076,-500.0,0.00015045,2]
[399909209,1766854674099,-291.32639617,0.00015045,2]
[399909210,1766854675507,-208.67360383,0.00015045,2]
[399909211,1766854675531,-500.0,0.00015045,2]
[399909212,1766854675552,-291.32639617,0.00015045,2]
[399909213,1766854677704,-309.21676771,0.00015045,2]
[399909214,1766854677727,-620.64667118,0.00015045,2]
[399909215,1766854677749,-70.13656111,0.00015045,2]
[399909216,1766854679604,-429.86343889,0.00015045,2]
[399909217,1766854679626,-282.4834215,0.00015045,2]
[399909218,1766854679648,-287.65313961,0.00015045,2]
[399909219,1766854682219,-212.34686039,0.00015045,2]
[399909220,1766854682243,-500.0,0.00015045,2]
[399909221,1766854682267,-287.65313961,0.00015045,2]
[399909222,1766854684886,-212.34686039,0.00015045,2]
[399909223,1766854684909,-628.80290974,0.00015045,2]
[399909224,1766854684933,-158.85022987,0.00015045,2]
[399909225,1766854687320,-341.14977013,0.00015045,2]
[399909226,1766854687343,-514.31143441,0.00015045,2]
[399909227,1766854687366,-144.53879546,0.00015045,2]
[399909228,1766854690202,-155.46120454,0.00015045,2]
[399909229,1766854690225,-300.0,0.00015045,2]
[399909230,1766854690250,-300.0,0.00015045,2]
[399909231,1766854690274,-244.53879546,0.00015045,2]
[399909232,1766854692793,-41.46120454,0.00015045,2]
[399909233,1766854692815,-189.09510968,0.00015045,2]
[399909234,1766854692840,-256.08233926,0.00015046,2]
[399909235,1766854692863,-500.0,0.00015046,2]
[399909236,1766854692886,-13.36134652,0.00015046,2]
[399909237,1766854695335,-1000.0,0.00015045,2]
[399909238,1766854697346,-199.0,0.00015045,2]
[399909239,1766854697371,-486.63865348,0.00015046,2]
[399909240,1766854697397,-314.36134652,0.00015046,2]
[399909241,1766854702912,-185.63865348,0.00015046,2]
[399909242,1766854702937,-500.0,0.00015046,2]
[399909243,1766854702962,-314.36134652,0.00015046,2]
[399909244,1766854705328,-185.63865348,0.00015046,2]
[399909245,1766854705353,-500.0,0.00015046,2]
[399909246,1766854705377,-314.36134652,0.00015046,2]
[399909247,1766854707587,-185.63865348,0.00015046,2]
[399909248,1766854707610,-500.0,0.00015046,2]
[399909249,1766854707633,-314.36134652,0.00015046,2]
[399909250,1766854744447,500.0,0.00013273,2]
[399909251,1766854801519,-300.0,0.00015044,2]
[399909252,1766854801549,-500.0,0.00015045,2]
[399909253,1766854801576,-200.0,0.00015045,2]
[399909254,1766854805051,500.0,0.00013273,2]
[399909255,1766854805713,-300.0,0.00015044,2]
[399909256,1766854805739,-300.0,0.00015044,2]
[399909257,1766854805764,-300.0,0.00015044,2]
[399909258,1766854805789,-100.0,0.00015044,2]
[399909259,1766854808023,-520.0,0.00015044,2]
[399909260,1766854808049,-300.0,0.00015045,2]
[399909261,1766854808093,-180.0,0.00015045,2]
[399909262,1766854811481,-358.27614434,0.00015045,2]
[399909263,1766854811504,-294.64593454,0.00015045,2]
[399909264,1766854811527,-347.07792112,0.00015045,2]
[399909265,1766854815314,-152.92207888,0.00015045,2]
[399909266,1766854815337,-500.0,0.00015045,2]
[399909267,1766854815361,-247.21851374,0.00015045,2]
[399909268,1766854815386,-99.85940738,0.00015045,2]
[399909269,1766854819461,-536.14059262,0.00015045,2]
[399909270,1766854819486,-185.63865348,0.00015046,2]
[399909271,1766854819508,-278.2207539,0.00015046,2]
[399909272,1766854823933,-221.7792461,0.00015046,2]
[399909273,1766854823958,-500.0,0.00015046,2]
[399909274,1766854823981,-278.2207539,0.00015046,2]
[399909275,1766854828449,-221.7792461,0.00015046,2]
[399909276,1766854828473,-500.0,0.00015046,2]
[399909277,1766854828497,-278.2207539,0.00015046,2]
[399909278,1766854832626,-221.7792461,0.00015046,2]
[399909279,1766854832650,-500.0,0.00015046,2]
[399909280,1766854832676,-278.2207539,0.00015046,2]
[399909281,1766854836000,-221.7792461,0.00015046,2]
[399909282,1766854836024,-398.38328705,0.00015046,2]
[399909283,1766854836048,-379.83746685,0.00015046,2]
[399909284,1766854839305,-120.16253315,0.00015046,2]
[399909285,1766854839330,-500.0,0.00015046,2]
[399909286,1766854839353,-379.83746685,0.00015046,2]
[399909287,1766854842839,-120.16253315,0.00015046,2]
[399909288,1766854842864,-500.0,0.00015046,2]
[399909289,1766854842886,-379.83746685,0.00015046,2]
[399909290,1766854849514,-120.16253315,0.00015046,2]
[399909291,1766854849538,-500.0,0.00015046,2]
[399909292,1766854849566,-379.83746685,0.00015046,2]
[399909293,1766854854913,-120.16253315,0.00015046,2]
[399909294,1766854854938,-500.0,0.00015046,2]
[399909295,1766854854962,-379.83746685,0.00015046,2]
[399909296,1766854859747,-120.16253315,0.00015046,2]
[399909297,1766854859769,-500.0,0.00015046,2]
[399909298,1766854859792,-379.83746685,0.00015046,2]
[399909299,1766854864259,-120.16253315,0.00015046,2]
[399909300,1766854864285,-500.0,0.00015046,2]
[399909301,1766854864307,-379.83746685,0.00015046,2]
[399909302,1766854868669,-120.16253315,0.00015046,2]
[399909303,1766854868693,-500.0,0.00015046,2]
[399909304,1766854868714,-379.83746685,0.00015046,2]
[399909305,1766854872611,-120.16253315,0.00015046,2]
[399909306,1766854872633,-500.0,0.00015046,2]
[399909307,1766854872661,-379.83746685,0.00015046,2]
[399909308,1766854876033,-120.16253315,0.00015046,2]
[399909309,1766854876058,-500.0,0.00015046,2]
[399909310,1766854876101,-379.83746685,0.00015046,2]
[399909311,1766854879458,-120.16253315,0.00015046,2]
[399909312,1766854879482,-500.0,0.00015046,2]
[399909313,1766854879507,-379.83746685,0.00015046,2]
[399909314,1766854882555,-120.16253315,0.00015046,2]
[399909315,1766854882580,-500.0,0.00015046,2]
[399909316,1766854882611,-379.83746685,0.00015046,2]
[399909317,1766854884901,-120.16253315,0.00015046,2]
[399909318,1766854884926,-500.0,0.00015046,2]
[399909319,1766854884950,-379.83746685,0.00015046,2]
[399909320,1766854889082,-120.16253315,0.00015046,2]
[399909321,1766854889108,-500.0,0.00015046,2]
[399909322,1766854889131,-379.83746685,0.00015046,2]
[399909323,1766854893483,-120.16253315,0.00015046,2]
[399909324,1766854893508,-500.0,0.00015046,2]
[399909325,1766854893531,-379.83746685,0.00015046,2]
[399909326,1766854897769,-120.16253315,0.00015046,2]
[399909327,1766854897794,-500.0,0.00015046,2]
[399909328,1766854897817,-379.83746685,0.00015046,2]
[399909329,1766854901053,-120.16253315,0.00015046,2]
[399909330,1766854901078,-625.86307096,0.00015046,2]
[399909331,1766854901102,-253.97439589,0.00015046,2]
[399909332,1766854904551,-246.02560411,0.00015046,2]
[399909333,1766854904574,-500.0,0.00015046,2]
[399909334,1766854904597,-253.97439589,0.00015046,2]
[399909335,1766854909306,-106.48264854,0.00015046,2]
[399909336,1766854909329,-500.0,0.00015046,2]
[399909337,1766854909353,-393.51735146,0.00015046,2]
[399909338,1766854917642,-106.48264854,0.00015046,2]
[399909339,1766854917670,-500.0,0.00015046,2]
[399909340,1766854917696,-251.14751586,0.00015046,2]
[399909341,1766854917721,-142.3698356,0.00015046,2]
[399909342,1766854921577,-357.6301644,0.00015046,2]
[399909343,1766854921602,-500.0,0.00015046,2]
[399909344,1766854921626,-142.3698356,0.00015046,2]
[399909345,1766854925766,-357.6301644,0.00015046,2]
[399909346,1766854925793,-500.0,0.00015046,2]
[399909347,1766854925819,-142.3698356,0.00015046,2]
[399909348,1766854929292,-357.6301644,0.00015046,2]
[399909349,1766854929318,-500.0,0.00015046,2]
[399909350,1766854929340,-142.3698356,0.00015046,2]
[399909351,1766854935110,-357.6301644,0.00015046,2]
[399909352,1766854935134,-500.0,0.00015046,2]
[399909353,1766854935159,-142.3698356,0.00015046,2]
[399909354,1766854939684,-357.6301644,0.00015046,2]
[399909355,1766854939711,-500.0,0.00015046,2]
[399909356,1766854939735,-142.3698356,0.00015046,2]
[399909357,1766854944021,-357.6301644,0.00015046,2]
[399909358,1766854944050,-500.0,0.00015046,2]
[399909359,1766854944075,-142.3698356,0.00015046,2]
[399909360,1766854948466,-357.6301644,0.00015046,2]
[399909361,1766854948498,-500.0,0.00015046,2]
[399909362,1766854948529,-142.3698356,0.00015046,2]
[399909363,1766854952353,-357.6301644,0.00015046,2]
[399909364,1766854952380,-500.0,0.00015046,2]
[399909365,1766854952407,-142.3698356,0.00015046,2]
[399909366,1766854956048,-192.29934849,0.00015046,2]
[399909367,1766854956072,-597.43583801,0.00015046,2]
[399909368,1766854956096,-210.2648135,0.0001505,2]
[399909369,1766854961026,-289.7351865,0.0001505,2]
[399909370,1766854961048,-474.26302971,0.0001505,2]
[399909371,1766854961072,-236.00178379,0.00015356,2]
[399909372,1766854965615,-63.99821621,0.00015356,2]
[399909373,1766855142135,-430.46124108,0.0001653,2]
[399909374,1766855142159,-176.42533199,0.00016697,2]
[399909375,1766855142181,-549.12053002,0.00016767,2]
[399909376,1766855142203,-226.91323122,0.00017046,2]
[399909377,1766855142224,-580.7743479,0.00017076,2]
[399909378,1766855142245,-160.2031045,0.00017818,2]
[399909379,1766855142267,-546.31510439,0.00017886,2]
[399909380,1766855167569,150.0,0.00010778,2]
[399909381,1766855167784,150.0,0.00011291,2]
[399909382,1766855316741,158.626934,0.00018811,120]
[399909416,1766855431999,-208.989992,0.00015383,2]
[399909417,1766855432010,-187.28969675,0.00017892,2]
[399909418,1766855432021,-92.72031125,0.00017897,2]
[399909419,1766855432037,-2704.21360694,0.00017897,2]
[399909420,1766855432052,-193.69836361,0.00017897,2]
[399909421,1766855432063,-455.63509605,0.0001795,2]
[399909450,1766855438029,-92.51637449,0.0001795,2]
[399909452,1766855438040,-158.626934,0.00018811,2]
[399909454,1766855438051,-158.626934,0.00018811,61]
[399909456,1766855438062,-177.0,0.00018864,2]
[399909458,1766855438075,-500.0,0.00018864,2]
[399909460,1766855438086,-157.22975751,0.00018864,2]
[399909545,1766855442030,-342.77024249,0.00018864,2]
[399909546,1766855442207,-500.0,0.00018864,2]
[399909547,1766855442218,-500.0,0.00018864,2]
[399909548,1766855442228,-180.07185235,0.00018864,2]
[399909549,1766855442238,-500.0,0.00018864,2]
[399909550,1766855442248,-544.26480967,0.00018864,2]
[399909551,1766855442257,-500.0,0.00018864,2]
[399909552,1766855442268,-500.0,0.00018864,2]
[399909553,1766855442277,-500.0,0.00018864,2]
[399909554,1766855442287,-39.80379595,0.00018864,2]
[399909555,1766855442393,-460.19620405,0.00018864,2]
[399909556,1766855442403,-439.80379595,0.00018864,2]
[399909557,1766855442421,-60.19620405,0.00018864,2]
[399909558,1766855442431,-252.01978814,0.00018864,2]
[399909559,1766855442441,-500.0,0.00018864,2]
[399909560,1766855442451,-500.0,0.00018864,2]
[399909561,1766855442460,-500.0,0.00018864,2]
[399909562,1766855442470,-500.0,0.00018864,2]
[399909563,1766855442479,-168.17562844,0.00018864,2]
[399909564,1766855442488,-500.0,0.00018864,2]
[399909565,1766855442499,-500.0,0.00018864,2]
[399909566,1766855442509,-500.0,0.00018864,2]
[399909567,1766855442519,-161.60705018,0.00018864,2]
[399909569,1766855442529,-2054.50132919,0.00018866,2]
[399909570,1766855442541,-400.19930188,0.00018866,2]
[399909580,1766855445199,-1625.81146644,0.00018866,2]
[399909606,1766855446099,-6117.86901009,0.00018866,2]
[399909607,1766855446110,-225.97471394,0.00018961,2]
[399909608,1766855446121,-406.75448509,0.00018961,2]
[399909609,1766855446131,-317.56559758,0.00018961,2]
[399909610,1766855446140,-202.46724538,0.00018961,2]
[399909611,1766855446150,-364.44104168,0.00018961,2]
[399909612,1766855446160,-1100.0,0.00019356,7]
[399909613,1766855446171,-300.0,0.00019741,2]
[399909614,1766855446180,-300.0,0.00019741,2]
[399909615,1766855446190,-300.0,0.00019741,2]
[399909616,1766855446200,-265.08932272,0.00019741,2]
[399909627,1766855554412,150.0,0.00010091,2]
[399909628,1766855554817,150.0,0.00010572,2]
[399909629,1766855555293,150.0,0.00011053,2]
[399909630,1766855555724,150.0,0.00011533,2]
[399909631,1766855556165,150.0,0.00012014,2]
[399909632,1766855557619,150.0,0.00012494,2]
[399909633,1766855558046,150.0,0.00012975,2]
[399909634,1766855594139,451.60521084,0.00013699,2]
[399909635,1766855597331,500.0,0.00013699,2]
[399909636,1766855604331,300.0,0.00013673,2]
[399909637,1766855687314,150.0,9.962e-05,2]
[399909638,1766855687787,150.0,0.00010436,2]
[399909639,1766855688221,150.0,0.0001091,2]
[399909640,1766855688624,150.0,0.00011385,2]
[399909641,1766855689152,183.25,0.00011859,2]
[399909642,1766855689561,219.9,0.00012334,2]
[399909643,1766855689996,256.55,0.00012808,2]
[399909644,1766855690404,293.2,0.00013282,2]
[399909645,1766855691188,329.85,0.00013757,2]
[399909646,1766855691382,366.5,0.00014231,2]
[399909647,1766855759501,150.0,9.95e-05,2]
[399909648,1766855759917,150.0,0.00010424,2]
[399909649,1766855760335,150.0,0.00010898,2]